[Event "January 2 Early 2024"]
[Site "https://www.chess.com"]
[Date "2024.01.02"]
[Round "8"]
[White "Rasulov, Vugar"]
[Black "Agibileg, Uurtsaikh"]
[Result "1-0"]
[Board "26"]
[TimeControl "180+1"]
[WhiteFideId "13402390"]
[BlackFideId "4901606"]
[WhiteElo "2966"]
[BlackElo "2693"]
[WhiteTeam "AZE"]
[BlackTeam "MGL"]
[WhiteClock "0:00:15"]
[BlackClock "0:00:10"]

1. e4 {[%clk 0:03:00]}  e5 {[%clk 0:02:55]} 2. Nf3 {[%clk 0:03:01]}  Nc6 {[%clk 0:02:55]} 3. Bc4 {[%clk 0:03:01]}  Nf6 {[%clk 0:02:54]} 4. d3 {[%clk 0:03:02]}  h6 {[%clk 0:02:52]} 5. O-O {[%clk 0:02:57]}  d6 {[%clk 0:02:48]} 6. Nc3 {[%clk 0:02:55]}  g5 {[%clk 0:02:48]} 7. Be3 {[%clk 0:02:46]}  Bg4 {[%clk 0:02:24]} 8. d4 {[%clk 0:02:36]}  exd4 {[%clk 0:02:20]} 9. Bxd4 {[%clk 0:02:36]}  Bxf3 {[%clk 0:02:14]} 10. gxf3 {[%clk 0:02:35]}  Nxd4 {[%clk 0:02:08]} 11. Qxd4 {[%clk 0:02:36]}  Bg7 {[%clk 0:02:07]} 12. Nd5 {[%clk 0:02:04]}  c6 {[%clk 0:02:00]} 13. Ne3 {[%clk 0:02:01]}  Nh5 {[%clk 0:01:58]} 14. Qd2 {[%clk 0:01:58]}  Be5 {[%clk 0:01:48]} 15. Nf5 {[%clk 0:01:55]}  Qf6 {[%clk 0:01:48]} 16. Qb4 {[%clk 0:01:51]}  b5 {[%clk 0:01:45]} 17. Bd3 {[%clk 0:01:39]}  a5 {[%clk 0:01:45]} 18. Qb3 {[%clk 0:01:38]}  O-O {[%clk 0:01:45]} 19. a4 {[%clk 0:01:37]}  b4 {[%clk 0:01:43]} 20. Rad1 {[%clk 0:01:34]}  Nf4 {[%clk 0:01:39]} 21. Qc4 {[%clk 0:01:27]}  Kh7 {[%clk 0:01:33]} 22. Qxc6 {[%clk 0:01:21]}  Qg6 {[%clk 0:01:33]} 23. Ng3 {[%clk 0:01:04]}  Qe6 {[%clk 0:01:33]} 24. Kh1 {[%clk 0:00:56]}  Qh3 {[%clk 0:01:33]} 25. Rg1 {[%clk 0:00:56]}  h5 {[%clk 0:01:33]} 26. Bf1 {[%clk 0:00:51]}  Qe6 {[%clk 0:01:30]} 27. Qc4 {[%clk 0:00:49]}  Rfc8 {[%clk 0:01:20]} 28. Qxe6 {[%clk 0:00:49]}  fxe6 {[%clk 0:01:20]} 29. Rd2 {[%clk 0:00:49]}  Kh6 {[%clk 0:01:15]} 30. b3 {[%clk 0:00:46]}  Rc3 {[%clk 0:01:07]} 31. Be2 {[%clk 0:00:38]}  Rac8 {[%clk 0:01:01]} 32. Bd1 {[%clk 0:00:39]}  Nh3 {[%clk 0:00:57]} 33. Rf1 {[%clk 0:00:36]}  Bf4 {[%clk 0:00:52]} 34. Rd4 {[%clk 0:00:34]}  Rxc2 {[%clk 0:00:49]} 35. Bxc2 {[%clk 0:00:34]}  Rxc2 {[%clk 0:00:50]} 36. Kg2 {[%clk 0:00:31]}  g4 {[%clk 0:00:42]} 37. fxg4 {[%clk 0:00:27]}  hxg4 {[%clk 0:00:43]} 38. e5 {[%clk 0:00:24]}  dxe5 {[%clk 0:00:39]} 39. Rd6 {[%clk 0:00:23]}  Be3 {[%clk 0:00:34]} 40. Rxe6+ {[%clk 0:00:23]}  Kh7 {[%clk 0:00:33]} 41. Re7+ {[%clk 0:00:20]}  Kg6 {[%clk 0:00:25]} 42. Ne4 {[%clk 0:00:20]}  Kf5 {[%clk 0:00:20]} 43. Nd6+ {[%clk 0:00:19]}  Kf6 {[%clk 0:00:19]} 44. Rc7 {[%clk 0:00:16]}  Ke6 {[%clk 0:00:10]} 45. Rxc2 {[%clk 0:00:15]} 1-0

[Event "January 2 Early 2024"]
[Site "https://www.chess.com"]
[Date "2024.01.02"]
[Round "8"]
[White "Tanriverdi, Enes"]
[Black "Bok, Benjamin"]
[Result "0-1"]
[Board "27"]
[TimeControl "180+1"]
[WhiteFideId "34543279"]
[BlackFideId "1017063"]
[WhiteElo "2672"]
[BlackElo "2950"]
[WhiteTeam "TUR"]
[BlackTeam "NED"]
[WhiteClock "0:00:55"]
[BlackClock "0:00:46"]

1. d4 {[%clk 0:03:00]}  Nf6 {[%clk 0:02:59]} 2. Nf3 {[%clk 0:03:00]}  e6 {[%clk 0:02:59]} 3. c4 {[%clk 0:03:01]}  b6 {[%clk 0:02:59]} 4. g3 {[%clk 0:03:01]}  Ba6 {[%clk 0:03:00]} 5. Qc2 {[%clk 0:02:59]}  c5 {[%clk 0:02:59]} 6. d5 {[%clk 0:02:59]}  exd5 {[%clk 0:03:00]} 7. cxd5 {[%clk 0:02:59]}  Bb7 {[%clk 0:03:01]} 8. Bg2 {[%clk 0:02:55]}  Nxd5 {[%clk 0:03:00]} 9. O-O {[%clk 0:02:55]}  Nc6 {[%clk 0:03:01]} 10. Rd1 {[%clk 0:02:55]}  Be7 {[%clk 0:03:00]} 11. Qa4 {[%clk 0:02:54]}  Nf6 {[%clk 0:02:58]} 12. Nh4 {[%clk 0:02:54]}  O-O {[%clk 0:02:57]} 13. Nc3 {[%clk 0:02:53]}  g6 {[%clk 0:02:56]} 14. Bh6 {[%clk 0:02:37]}  Re8 {[%clk 0:02:56]} 15. Nb5 {[%clk 0:02:38]}  d5 {[%clk 0:02:53]} 16. e4 {[%clk 0:02:20]}  d4 {[%clk 0:02:35]} 17. e5 {[%clk 0:02:15]}  Ng4 {[%clk 0:02:32]} 18. Bf4 {[%clk 0:02:15]}  Bxh4 {[%clk 0:02:31]} 19. gxh4 {[%clk 0:02:15]}  Ngxe5 {[%clk 0:02:20]} 20. Re1 {[%clk 0:02:08]}  Qd7 {[%clk 0:02:12]} 21. Bg3 {[%clk 0:01:34]}  a6 {[%clk 0:02:01]} 22. Na3 {[%clk 0:01:33]}  b5 {[%clk 0:01:59]} 23. Qd1 {[%clk 0:01:33]}  c4 {[%clk 0:01:52]} 24. h5 {[%clk 0:01:32]}  Nd3 {[%clk 0:01:47]} 25. Rxe8+ {[%clk 0:01:26]}  Rxe8 {[%clk 0:01:48]} 26. Qf3 {[%clk 0:01:22]}  Nd8 {[%clk 0:01:26]} 27. Qf6 {[%clk 0:01:18]}  Bxg2 {[%clk 0:01:25]} 28. h6 {[%clk 0:01:17]}  Ne6 {[%clk 0:01:17]} 29. Rd1 {[%clk 0:01:13]}  Qe7 {[%clk 0:00:57]} 30. Qxe7 {[%clk 0:01:10]}  Rxe7 {[%clk 0:00:57]} 31. Kxg2 {[%clk 0:01:09]}  Nxb2 {[%clk 0:00:52]} 32. Re1 {[%clk 0:01:09]}  Nd3 {[%clk 0:00:50]} 33. Rf1 {[%clk 0:01:00]}  f5 {[%clk 0:00:49]} 34. Kf3 {[%clk 0:01:00]}  Kf7 {[%clk 0:00:47]} 35. Nc2 {[%clk 0:01:00]}  f4 {[%clk 0:00:46]} 36. Bh4 {[%clk 0:00:55]}  g5 {[%clk 0:00:46]} 0-1

[Event "January 2 Early 2024"]
[Site "https://www.chess.com"]
[Date "2024.01.02"]
[Round "8"]
[White "Drygalov, Sergey"]
[Black "Cordoba Roa, Angel Gabriel"]
[Result "1-0"]
[Board "28"]
[TimeControl "180+1"]
[WhiteFideId "24171743"]
[BlackFideId "3957624"]
[WhiteElo "2949"]
[BlackElo "2662"]
[WhiteTeam "RUS"]
[BlackTeam "COL"]
[WhiteClock "0:01:35"]
[BlackClock "0:00:20"]

1. d4 {[%clk 0:02:58]}  Nf6 {[%clk 0:02:59]} 2. c4 {[%clk 0:02:57]}  e6 {[%clk 0:02:59]} 3. Nf3 {[%clk 0:02:57]}  d5 {[%clk 0:03:00]} 4. Nc3 {[%clk 0:02:58]}  dxc4 {[%clk 0:03:01]} 5. e4 {[%clk 0:02:58]}  b5 {[%clk 0:03:02]} 6. e5 {[%clk 0:02:58]}  Nd5 {[%clk 0:03:02]} 7. Nxb5 {[%clk 0:02:59]}  Nb6 {[%clk 0:03:03]} 8. Be2 {[%clk 0:02:59]}  Nc6 {[%clk 0:03:04]} 9. Be3 {[%clk 0:02:59]}  Be7 {[%clk 0:03:04]} 10. a3 {[%clk 0:02:58]}  O-O {[%clk 0:03:04]} 11. h4 {[%clk 0:02:58]}  Qd7 {[%clk 0:03:00]} 12. Nc3 {[%clk 0:02:58]}  Bb7 {[%clk 0:02:56]} 13. Qc2 {[%clk 0:02:58]}  Na5 {[%clk 0:02:56]} 14. Ng5 {[%clk 0:02:55]}  g6 {[%clk 0:02:23]} 15. Rd1 {[%clk 0:02:51]}  Nd5 {[%clk 0:02:20]} 16. Nxd5 {[%clk 0:02:47]}  Bxd5 {[%clk 0:02:15]} 17. h5 {[%clk 0:02:47]}  Bxg5 {[%clk 0:02:16]} 18. Bxg5 {[%clk 0:02:46]}  Bxg2 {[%clk 0:02:16]} 19. Rh2 {[%clk 0:02:44]}  Qd5 {[%clk 0:02:10]} 20. Bf6 {[%clk 0:02:32]}  Qe4 {[%clk 0:01:42]} 21. Qd2 {[%clk 0:02:12]}  Bf3 {[%clk 0:01:42]} 22. Rh4 {[%clk 0:02:11]}  Qxe2+ {[%clk 0:01:38]} 23. Qxe2 {[%clk 0:02:12]}  Bxe2 {[%clk 0:01:31]} 24. Kxe2 {[%clk 0:02:13]}  Rab8 {[%clk 0:01:09]} 25. Rdh1 {[%clk 0:02:12]}  Rxb2+ {[%clk 0:01:09]} 26. Kf3 {[%clk 0:02:12]}  Nc6 {[%clk 0:00:57]} 27. Kg2 {[%clk 0:01:53]}  g5 {[%clk 0:00:48]} 28. Bxg5 {[%clk 0:01:52]}  h6 {[%clk 0:00:40]} 29. Bxh6 {[%clk 0:01:49]}  Rd8 {[%clk 0:00:40]} 30. Be3 {[%clk 0:01:49]}  Kh7 {[%clk 0:00:38]} 31. Rf4 {[%clk 0:01:48]}  Rd7 {[%clk 0:00:36]} 32. Rc1 {[%clk 0:01:46]}  Na5 {[%clk 0:00:33]} 33. Kf3 {[%clk 0:01:46]}  Rb3 {[%clk 0:00:32]} 34. Rg4 {[%clk 0:01:45]}  c3 {[%clk 0:00:20]} 35. Rcg1 {[%clk 0:01:43]}  Rd8 {[%clk 0:00:20]} 36. Rg7+ {[%clk 0:01:36]}  Kh8 {[%clk 0:00:21]} 37. Rxf7 {[%clk 0:01:36]}  c2 {[%clk 0:00:21]} 38. Rf6 {[%clk 0:01:35]}  Nc4 {[%clk 0:00:20]} 39. Rh6# {[%clk 0:01:35]} 1-0

[Event "January 2 Early 2024"]
[Site "https://www.chess.com"]
[Date "2024.01.02"]
[Round "8"]
[White "Sipila, Vilka"]
[Black "Santos Latasa, Jaime"]
[Result "0-1"]
[Board "29"]
[TimeControl "180+1"]
[WhiteFideId "505455"]
[BlackFideId "2293307"]
[WhiteElo "2658"]
[BlackElo "2943"]
[WhiteTeam "FIN"]
[BlackTeam "ESP"]
[WhiteClock "0:00:04"]
[BlackClock "0:00:56"]

1. e4 {[%clk 0:02:57]}  c6 {[%clk 0:02:59]} 2. d4 {[%clk 0:02:58]}  d5 {[%clk 0:03:00]} 3. e5 {[%clk 0:02:58]}  c5 {[%clk 0:02:59]} 4. Nf3 {[%clk 0:02:58]}  cxd4 {[%clk 0:02:58]} 5. Nxd4 {[%clk 0:02:58]}  Nc6 {[%clk 0:02:58]} 6. Nxc6 {[%clk 0:02:58]}  bxc6 {[%clk 0:02:58]} 7. Bd3 {[%clk 0:02:59]}  e6 {[%clk 0:02:58]} 8. O-O {[%clk 0:03:00]}  Ne7 {[%clk 0:02:58]} 9. Nd2 {[%clk 0:02:59]}  Ng6 {[%clk 0:02:58]} 10. Re1 {[%clk 0:03:00]}  a5 {[%clk 0:02:55]} 11. Nf3 {[%clk 0:02:52]}  Ba6 {[%clk 0:02:54]} 12. Bxa6 {[%clk 0:02:51]}  Rxa6 {[%clk 0:02:55]} 13. g3 {[%clk 0:02:42]}  Be7 {[%clk 0:02:46]} 14. h4 {[%clk 0:02:42]}  Nf8 {[%clk 0:02:44]} 15. h5 {[%clk 0:02:42]}  h6 {[%clk 0:02:44]} 16. c4 {[%clk 0:02:41]}  Nd7 {[%clk 0:02:44]} 17. Qc2 {[%clk 0:02:37]}  O-O {[%clk 0:02:43]} 18. Be3 {[%clk 0:02:32]}  Qa8 {[%clk 0:02:38]} 19. Rad1 {[%clk 0:02:27]}  a4 {[%clk 0:02:36]} 20. Nd4 {[%clk 0:02:22]}  Nxe5 {[%clk 0:02:15]} 21. cxd5 {[%clk 0:02:22]}  c5 {[%clk 0:02:05]} 22. Nb5 {[%clk 0:02:15]}  Nf3+ {[%clk 0:02:04]} 23. Kf1 {[%clk 0:02:11]}  Nxe1 {[%clk 0:02:02]} 24. Kxe1 {[%clk 0:02:09]}  Rb6 {[%clk 0:01:48]} 25. d6 {[%clk 0:01:41]}  Bf6 {[%clk 0:01:36]} 26. Qxc5 {[%clk 0:01:36]}  Qa5+ {[%clk 0:01:32]} 27. Nc3 {[%clk 0:01:36]}  Qxc5 {[%clk 0:01:32]} 28. Bxc5 {[%clk 0:01:37]}  Rxb2 {[%clk 0:01:32]} 29. Nxa4 {[%clk 0:01:37]}  Rxa2 {[%clk 0:01:31]} 30. Nb6 {[%clk 0:01:36]}  Rd8 {[%clk 0:01:28]} 31. d7 {[%clk 0:01:31]}  Rc2 {[%clk 0:01:24]} 32. Be3 {[%clk 0:01:30]}  Rc7 {[%clk 0:01:19]} 33. f4 {[%clk 0:01:22]}  Bc3+ {[%clk 0:01:18]} 34. Ke2 {[%clk 0:01:19]}  Ba5 {[%clk 0:01:18]} 35. Rd3 {[%clk 0:01:12]}  Rc2+ {[%clk 0:01:10]} 36. Kf3 {[%clk 0:01:11]}  Rc7 {[%clk 0:01:06]} 37. Ke2 {[%clk 0:01:08]}  Rc2+ {[%clk 0:01:02]} 38. Kf3 {[%clk 0:01:08]}  Rc3 {[%clk 0:01:02]} 39. Rxc3 {[%clk 0:00:32]}  Bxc3 {[%clk 0:01:03]} 40. Ke4 {[%clk 0:00:31]}  Ba5 {[%clk 0:01:01]} 41. Nc4 {[%clk 0:00:31]}  Bc7 {[%clk 0:01:00]} 42. g4 {[%clk 0:00:28]}  Rxd7 {[%clk 0:01:00]} 43. f5 {[%clk 0:00:29]}  Kf8 {[%clk 0:00:58]} 44. fxe6 {[%clk 0:00:29]}  fxe6 {[%clk 0:00:59]} 45. Bd4 {[%clk 0:00:28]}  Kf7 {[%clk 0:00:58]} 46. Be5 {[%clk 0:00:27]}  Bxe5 {[%clk 0:00:56]} 47. Nxe5+ {[%clk 0:00:28]}  Ke7 {[%clk 0:00:57]} 48. Ng6+ {[%clk 0:00:11]}  Kf6 {[%clk 0:00:56]} 49. Ne5 {[%clk 0:00:10]}  Rd5 {[%clk 0:00:56]} 50. Nf3 {[%clk 0:00:04]}  Ra5 {[%clk 0:00:56]} 0-1

[Event "January 2 Early 2024"]
[Site "https://www.chess.com"]
[Date "2024.01.02"]
[Round "8"]
[White "Veljanoski, Andrej"]
[Black "Makhnev, Denis"]
[Result "0-1"]
[Board "31"]
[TimeControl "180+1"]
[WhiteFideId "15003604"]
[BlackFideId "13707647"]
[WhiteElo "2615"]
[BlackElo "2921"]
[WhiteTeam "MKD"]
[BlackTeam "KAZ"]
[WhiteClock "0:00:00"]
[BlackClock "0:00:11"]

1. Nf3 {[%clk 0:03:00]}  d5 {[%clk 0:02:59]} 2. b3 {[%clk 0:03:00]}  f6 {[%clk 0:02:57]} 3. d4 {[%clk 0:02:59]}  c5 {[%clk 0:02:57]} 4. e3 {[%clk 0:02:58]}  Nc6 {[%clk 0:02:57]} 5. Bb2 {[%clk 0:02:58]}  Bf5 {[%clk 0:02:54]} 6. c4 {[%clk 0:02:56]}  Nb4 {[%clk 0:02:34]} 7. Na3 {[%clk 0:02:56]}  e5 {[%clk 0:02:34]} 8. dxe5 {[%clk 0:02:52]}  Qa5 {[%clk 0:02:35]} 9. Qd2 {[%clk 0:02:50]}  O-O-O {[%clk 0:02:34]} 10. cxd5 {[%clk 0:02:45]}  Rxd5 {[%clk 0:02:31]} 11. Qc3 {[%clk 0:02:45]}  Bd3 {[%clk 0:02:02]} 12. Rd1 {[%clk 0:02:17]}  Qa6 {[%clk 0:01:58]} 13. exf6 {[%clk 0:01:37]}  Nxf6 {[%clk 0:01:58]} 14. Bxd3 {[%clk 0:01:19]}  Nxd3+ {[%clk 0:01:56]} 15. Rxd3 {[%clk 0:01:20]}  Rxd3 {[%clk 0:01:33]} 16. Qc4 {[%clk 0:01:10]}  Qxc4 {[%clk 0:01:18]} 17. Nxc4 {[%clk 0:01:11]}  Be7 {[%clk 0:01:19]} 18. Nfe5 {[%clk 0:00:54]}  Rd5 {[%clk 0:01:16]} 19. a4 {[%clk 0:00:54]}  Re8 {[%clk 0:01:12]} 20. Ke2 {[%clk 0:00:52]}  Bd8 {[%clk 0:01:09]} 21. f3 {[%clk 0:00:41]}  Bc7 {[%clk 0:01:09]} 22. Nd3 {[%clk 0:00:40]}  b6 {[%clk 0:00:42]} 23. e4 {[%clk 0:00:38]}  Rdd8 {[%clk 0:00:42]} 24. Ne3 {[%clk 0:00:30]}  Rd7 {[%clk 0:00:37]} 25. Nf5 {[%clk 0:00:20]}  g6 {[%clk 0:00:25]} 26. Ne3 {[%clk 0:00:18]}  Nh5 {[%clk 0:00:25]} 27. g3 {[%clk 0:00:19]}  Kb7 {[%clk 0:00:24]} 28. Rd1 {[%clk 0:00:15]}  Ng7 {[%clk 0:00:22]} 29. Kf2 {[%clk 0:00:15]}  Rf7 {[%clk 0:00:19]} 30. Ke2 {[%clk 0:00:13]}  Ne6 {[%clk 0:00:19]} 31. Nd5 {[%clk 0:00:13]}  Bb8 {[%clk 0:00:18]} 32. Ke3 {[%clk 0:00:13]}  Rd8 {[%clk 0:00:18]} 33. Ne5 {[%clk 0:00:12]}  Rff8 {[%clk 0:00:15]} 34. Nc4 {[%clk 0:00:12]}  Bc7 {[%clk 0:00:12]} 35. f4 {[%clk 0:00:12]}  a6 {[%clk 0:00:11]} 36. Nd2 {[%clk 0:00:06]}  b5 {[%clk 0:00:11]} 37. Nf3 {[%clk 0:00:05]}  Bb8 {[%clk 0:00:10]} 38. h4 {[%clk 0:00:05]}  Ba7 {[%clk 0:00:10]} 39. h5 {[%clk 0:00:05]}  c4+ {[%clk 0:00:10]} 40. Ke2 {[%clk 0:00:06]}  Nc5 {[%clk 0:00:10]} 41. bxc4 {[%clk 0:00:06]}  Nxe4 {[%clk 0:00:11]} 42. hxg6 {[%clk 0:00:03]}  Nxg3+ {[%clk 0:00:10]} 43. Kd3 {[%clk 0:00:00]}  hxg6 {[%clk 0:00:11]} 0-1

[Event "January 2 Early 2024"]
[Site "https://www.chess.com"]
[Date "2024.01.02"]
[Round "8"]
[White "Aswath, S"]
[Black "Aravindh, Chithambaram VR."]
[Result "0-1"]
[Board "32"]
[TimeControl "180+1"]
[WhiteFideId "46694919"]
[BlackFideId "5072786"]
[WhiteElo "2612"]
[BlackElo "2917"]
[WhiteTeam "IND"]
[BlackTeam "IND"]
[WhiteClock "0:00:26"]
[BlackClock "0:00:11"]

1. c4 {[%clk 0:03:00]}  Nf6 {[%clk 0:02:17]} 2. g3 {[%clk 0:02:59]}  d6 {[%clk 0:02:11]} 3. Bg2 {[%clk 0:02:58]}  g6 {[%clk 0:02:12]} 4. Nc3 {[%clk 0:02:57]}  Bg7 {[%clk 0:02:13]} 5. d4 {[%clk 0:02:57]}  O-O {[%clk 0:02:14]} 6. h3 {[%clk 0:02:57]}  Nc6 {[%clk 0:02:12]} 7. Nf3 {[%clk 0:02:57]}  e5 {[%clk 0:02:12]} 8. dxe5 {[%clk 0:02:57]}  dxe5 {[%clk 0:02:13]} 9. Be3 {[%clk 0:02:57]}  Be6 {[%clk 0:02:10]} 10. b3 {[%clk 0:02:56]}  Qe7 {[%clk 0:02:05]} 11. O-O {[%clk 0:02:49]}  Rfd8 {[%clk 0:02:04]} 12. Qc1 {[%clk 0:02:49]}  Nd4 {[%clk 0:01:44]} 13. Nxe5 {[%clk 0:02:42]}  Bxh3 {[%clk 0:01:43]} 14. Bxh3 {[%clk 0:02:25]}  Qxe5 {[%clk 0:01:41]} 15. Re1 {[%clk 0:02:15]}  c6 {[%clk 0:01:28]} 16. Rb1 {[%clk 0:01:52]}  Qh5 {[%clk 0:01:22]} 17. Kg2 {[%clk 0:01:50]}  Ng4 {[%clk 0:01:22]} 18. Rh1 {[%clk 0:01:40]}  Nxe3+ {[%clk 0:01:14]} 19. Qxe3 {[%clk 0:01:41]}  Re8 {[%clk 0:01:13]} 20. Qd3 {[%clk 0:01:31]}  Qe5 {[%clk 0:00:35]} 21. e3 {[%clk 0:01:25]}  Ne6 {[%clk 0:00:35]} 22. Ne2 {[%clk 0:01:24]}  Rad8 {[%clk 0:00:34]} 23. Qc2 {[%clk 0:01:24]}  Ng5 {[%clk 0:00:32]} 24. Nf4 {[%clk 0:01:15]}  Rd2 {[%clk 0:00:16]} 25. Qxd2 {[%clk 0:01:04]}  Qe4+ {[%clk 0:00:17]} 26. f3 {[%clk 0:01:02]}  Nxf3 {[%clk 0:00:17]} 27. Qd7 {[%clk 0:00:45]}  Ne5+ {[%clk 0:00:15]} 28. Kh2 {[%clk 0:00:43]}  Nxd7 {[%clk 0:00:16]} 29. Bxd7 {[%clk 0:00:44]}  Rd8 {[%clk 0:00:16]} 30. Rbd1 {[%clk 0:00:41]}  Qc2+ {[%clk 0:00:13]} 31. Kh3 {[%clk 0:00:40]}  Rxd7 {[%clk 0:00:14]} 32. Rxd7 {[%clk 0:00:34]}  Qf5+ {[%clk 0:00:14]} 33. g4 {[%clk 0:00:31]}  Qxd7 {[%clk 0:00:15]} 34. Kg2 {[%clk 0:00:30]}  Qxg4+ {[%clk 0:00:13]} 35. Kf2 {[%clk 0:00:30]}  Bd4 {[%clk 0:00:13]} 36. Ne2 {[%clk 0:00:26]}  Qf5+ {[%clk 0:00:11]} 0-1

[Event "January 2 Early 2024"]
[Site "https://www.chess.com"]
[Date "2024.01.02"]
[Round "8"]
[White "Jeet, Jain"]
[Black "Ibarra Jerez, Jose Carlos"]
[Result "0-1"]
[Board "33"]
[TimeControl "180+1"]
[WhiteFideId "5073022"]
[BlackFideId "2226332"]
[WhiteElo "2573"]
[BlackElo "2916"]
[WhiteTeam "IND"]
[BlackTeam "ESP"]
[WhiteClock "0:00:50"]
[BlackClock "0:00:55"]

1. Nf3 {[%clk 0:03:00]}  Nf6 {[%clk 0:02:59]} 2. g3 {[%clk 0:03:01]}  g6 {[%clk 0:02:58]} 3. Bg2 {[%clk 0:03:01]}  d6 {[%clk 0:02:59]} 4. d4 {[%clk 0:03:01]}  Bg7 {[%clk 0:02:59]} 5. O-O {[%clk 0:03:02]}  O-O {[%clk 0:03:00]} 6. Nbd2 {[%clk 0:03:03]}  Nbd7 {[%clk 0:02:59]} 7. e4 {[%clk 0:03:03]}  e5 {[%clk 0:03:00]} 8. dxe5 {[%clk 0:03:03]}  dxe5 {[%clk 0:03:00]} 9. c3 {[%clk 0:03:03]}  b6 {[%clk 0:02:59]} 10. a4 {[%clk 0:02:59]}  a5 {[%clk 0:02:58]} 11. Re1 {[%clk 0:02:51]}  Re8 {[%clk 0:02:56]} 12. Qb3 {[%clk 0:02:47]}  Nc5 {[%clk 0:02:56]} 13. Qc2 {[%clk 0:02:45]}  Qd3 {[%clk 0:02:47]} 14. Qxd3 {[%clk 0:02:41]}  Nxd3 {[%clk 0:02:48]} 15. Re3 {[%clk 0:02:42]}  Nxc1 {[%clk 0:02:40]} 16. Rxc1 {[%clk 0:02:43]}  Bh6 {[%clk 0:02:41]} 17. Ree1 {[%clk 0:02:40]}  Ba6 {[%clk 0:02:41]} 18. Rcd1 {[%clk 0:02:39]}  Rad8 {[%clk 0:02:38]} 19. Nb3 {[%clk 0:02:19]}  Rxd1 {[%clk 0:02:17]} 20. Rxd1 {[%clk 0:02:20]}  Nxe4 {[%clk 0:02:17]} 21. Rd7 {[%clk 0:02:14]}  c5 {[%clk 0:02:17]} 22. Ne1 {[%clk 0:01:45]}  Nf6 {[%clk 0:02:02]} 23. Rd6 {[%clk 0:01:45]}  Re6 {[%clk 0:02:03]} 24. Rxe6 {[%clk 0:01:43]}  fxe6 {[%clk 0:02:03]} 25. Bf1 {[%clk 0:01:42]}  Bxf1 {[%clk 0:01:51]} 26. Kxf1 {[%clk 0:01:43]}  c4 {[%clk 0:01:52]} 27. Na1 {[%clk 0:01:43]}  Bc1 {[%clk 0:01:53]} 28. Nac2 {[%clk 0:01:39]}  Nd5 {[%clk 0:01:46]} 29. Na3 {[%clk 0:01:38]}  Bxb2 {[%clk 0:01:44]} 30. Nxc4 {[%clk 0:01:38]}  Bxc3 {[%clk 0:01:44]} 31. Nd3 {[%clk 0:01:34]}  e4 {[%clk 0:01:43]} 32. Nf4 {[%clk 0:01:23]}  Kf7 {[%clk 0:01:34]} 33. Ke2 {[%clk 0:01:16]}  Ke7 {[%clk 0:01:24]} 34. Nh3 {[%clk 0:01:11]}  Bd4 {[%clk 0:01:20]} 35. Ng5 {[%clk 0:01:10]}  Nc3+ {[%clk 0:01:20]} 36. Kd2 {[%clk 0:01:09]}  h6 {[%clk 0:01:05]} 37. Nh3 {[%clk 0:01:04]}  Nxa4 {[%clk 0:00:59]} 38. Nf4 {[%clk 0:00:57]}  g5 {[%clk 0:00:56]} 39. Nh3 {[%clk 0:00:50]}  b5 {[%clk 0:00:55]} 0-1

[Event "January 2 Early 2024"]
[Site "https://www.chess.com"]
[Date "2024.01.02"]
[Round "8"]
[White "Maksimovic, Bojan"]
[Black "Tiarks, Jann-Christian"]
[Result "1/2-1/2"]
[Board "34"]
[TimeControl "180+1"]
[WhiteFideId "14408120"]
[BlackFideId "12951595"]
[WhiteElo "2872"]
[BlackElo "2471"]
[WhiteTeam "BIH"]
[BlackTeam "GER"]
[WhiteClock "0:00:05"]
[BlackClock "0:00:52"]

1. a3 {[%clk 0:03:00]}  e5 {[%clk 0:02:56]} 2. h3 {[%clk 0:03:00]}  d5 {[%clk 0:02:56]} 3. e3 {[%clk 0:03:01]}  c5 {[%clk 0:02:56]} 4. d4 {[%clk 0:03:01]}  cxd4 {[%clk 0:02:54]} 5. exd4 {[%clk 0:03:02]}  exd4 {[%clk 0:02:51]} 6. Nf3 {[%clk 0:03:02]}  Nc6 {[%clk 0:02:51]} 7. Nxd4 {[%clk 0:03:02]}  Nf6 {[%clk 0:02:50]} 8. Be2 {[%clk 0:03:00]}  Bc5 {[%clk 0:02:48]} 9. Nxc6 {[%clk 0:02:28]}  bxc6 {[%clk 0:02:49]} 10. O-O {[%clk 0:02:29]}  O-O {[%clk 0:02:46]} 11. b4 {[%clk 0:02:29]}  Bb6 {[%clk 0:02:45]} 12. Bb2 {[%clk 0:02:29]}  Ne4 {[%clk 0:02:42]} 13. Nd2 {[%clk 0:02:23]}  Bf5 {[%clk 0:02:41]} 14. Nxe4 {[%clk 0:02:22]}  Bxe4 {[%clk 0:02:38]} 15. Bd3 {[%clk 0:02:20]}  Re8 {[%clk 0:02:36]} 16. Qg4 {[%clk 0:02:16]}  Bg6 {[%clk 0:02:34]} 17. Bxg6 {[%clk 0:02:03]}  hxg6 {[%clk 0:02:34]} 18. Rfe1 {[%clk 0:02:04]}  Qd6 {[%clk 0:02:31]} 19. Re2 {[%clk 0:01:55]}  Rxe2 {[%clk 0:02:18]} 20. Qxe2 {[%clk 0:01:56]}  Bc7 {[%clk 0:02:18]} 21. g3 {[%clk 0:01:57]}  Bb6 {[%clk 0:02:18]} 22. Kg2 {[%clk 0:01:56]}  d4 {[%clk 0:02:13]} 23. Re1 {[%clk 0:01:53]}  Rd8 {[%clk 0:02:12]} 24. Qe4 {[%clk 0:01:49]}  d3 {[%clk 0:02:05]} 25. Rd1 {[%clk 0:01:32]}  d2 {[%clk 0:01:57]} 26. Bc3 {[%clk 0:01:29]}  c5 {[%clk 0:01:30]} 27. Rxd2 {[%clk 0:01:26]}  Qxd2 {[%clk 0:01:30]} 28. Bxd2 {[%clk 0:01:27]}  Rxd2 {[%clk 0:01:30]} 29. Qe3 {[%clk 0:00:46]}  Rxc2 {[%clk 0:01:28]} 30. Qd3 {[%clk 0:00:45]}  Rxf2+ {[%clk 0:01:19]} 31. Kxf2 {[%clk 0:00:40]}  c4+ {[%clk 0:01:19]} 32. Qe3 {[%clk 0:00:41]}  f5 {[%clk 0:01:05]} 33. h4 {[%clk 0:00:36]}  Kf7 {[%clk 0:01:02]} 34. Kf3 {[%clk 0:00:34]}  Bxe3 {[%clk 0:01:01]} 35. Kxe3 {[%clk 0:00:35]}  Kf6 {[%clk 0:00:57]} 36. Kd4 {[%clk 0:00:25]}  g5 {[%clk 0:00:56]} 37. hxg5+ {[%clk 0:00:15]}  Kxg5 {[%clk 0:00:57]} 38. a4 {[%clk 0:00:16]}  Kf6 {[%clk 0:00:53]} 39. b5 {[%clk 0:00:15]}  Ke6 {[%clk 0:00:53]} 40. Kxc4 {[%clk 0:00:06]}  Kd6 {[%clk 0:00:53]} 41. a5 {[%clk 0:00:05]}  g5 {[%clk 0:00:52]} 42. Kd4 {[%clk 0:00:03]}  f4 {[%clk 0:00:50]} 43. gxf4 {[%clk 0:00:03]}  gxf4 {[%clk 0:00:51]} 44. Ke4 {[%clk 0:00:03]}  Kc5 {[%clk 0:00:52]} 45. b6 {[%clk 0:00:03]}  axb6 {[%clk 0:00:52]} 46. axb6 {[%clk 0:00:04]}  Kxb6 {[%clk 0:00:52]} 47. Kxf4 {[%clk 0:00:05]} 1/2-1/2